{"text_format":"3","workbook":"xlsx","n_sheets":1,"sheets":["Miesięczny budżet rodziny"],"not_rendered":{"defined_names":1},"read":"whole","date_system":"1900"}

{"sheet":"Miesięczny budżet rodziny","index":0,"n_rows":68,"n_cols":9,"rows_kept":68,"merged":[[0,0,0,6],[2,0,2,1],[2,5,2,6],[8,5,8,6],[18,0,18,3],[27,5,27,8],[29,0,29,3],[36,0,36,3],[37,5,37,8],[42,0,42,3],[44,5,44,8],[54,0,54,3],[54,5,54,8],[61,0,61,3],[62,5,62,8]]}
["Miesięczny budżet rodziny"]
[]
["Całkowity koszt planowany",null,"Całkowity koszt rzeczywisty","Całkowita różnica",null,"Planowane przychody miesięczne"]
[null,{"$f":"Housing[[#Totals],[Koszt planowany]]+Transportation[[#Totals],[Koszt planowany]]+Insurance[[#Totals],[Koszt planowany]]+Food[[#Totals],[Koszt planowany]]+Children[[#Totals],[Koszt planowany]]+Legal[[#Totals],[Koszt planowany]]+Savings[[#Totals],[Koszt planowany]]+Loans[[#Totals],[Koszt planowany]]+Entertainment[[#Totals],[Koszt planowany]]+Taxes[[#Totals],[Koszt planowany]]+PersonalCare[[#Totals],[Koszt planowany]]+Pets[[#Totals],[Koszt planowany]]+Gifts[[#Totals],[Koszt planowany]]","v":{"v":1203,"d":"1,203 zł"}},{"$f":"Housing[[#Totals],[Koszt rzeczywisty]]+Transportation[[#Totals],[Koszt rzeczywisty]]+Insurance[[#Totals],[Koszt rzeczywisty]]+Food[[#Totals],[Koszt rzeczywisty]]+Children[[#Totals],[Koszt rzeczywisty]]+Legal[[#Totals],[Koszt rzeczywisty]]+Savings[[#Totals],[Koszt rzeczywisty]]+Loans[[#Totals],[Koszt rzeczywisty]]+Entertainment[[#Totals],[Koszt rzeczywisty]]+Taxes[[#Totals],[Koszt rzeczywisty]]+PersonalCare[[#Totals],[Koszt rzeczywisty]]+Pets[[#Totals],[Koszt rzeczywisty]]+Gifts[[#Totals],[Koszt rzeczywisty]]","v":{"v":1317,"d":"1,317 zł"}},{"$f":"Housing[[#Totals],[Różnica]]+Transportation[[#Totals],[Różnica]]+Insurance[[#Totals],[Różnica]]+Food[[#Totals],[Różnica]]+Children[[#Totals],[Różnica]]+Legal[[#Totals],[Różnica]]+Savings[[#Totals],[Różnica]]+Loans[[#Totals],[Różnica]]+Entertainment[[#Totals],[Różnica]]+Taxes[[#Totals],[Różnica]]+PersonalCare[[#Totals],[Różnica]]+Pets[[#Totals],[Różnica]]+Gifts[[#Totals],[Różnica]]","v":{"v":-114,"d":"-114 zł"}},null,"Przychód 1",{"v":4000,"d":"4,000 zł"}]
[{"$nulls":5},"Przychód 2",{"v":1200,"d":"1,200 zł"}]
["Utrzymanie domu","Koszt planowany","Koszt rzeczywisty","Różnica",null,"Przychód dodatkowy",{"v":300,"d":"300 zł"}]
["Spłata kredytu lub czynsz",{"v":1000,"d":"1,000 zł"},{"v":1000,"d":"1,000 zł"},{"$f":"Housing[Koszt planowany]-Housing[Koszt rzeczywisty]","v":{"v":0,"d":"0 zł"}},null,"Całkowity przychód miesięczny",{"$f":"SUM(G4:G6)","v":{"v":5500,"d":"5,500 zł"}}]
["Druga spłata kredytu lub czynszrent",{"v":0,"d":"0 zł"},{"v":0,"d":"0 zł"},{"$f":"Housing[Koszt planowany]-Housing[Koszt rzeczywisty]","v":{"v":0,"d":"0 zł"}}]
["Telefon",{"v":62,"d":"62 zł"},{"v":100,"d":"100 zł"},{"$f":"Housing[Koszt planowany]-Housing[Koszt rzeczywisty]","v":{"v":-38,"d":"-38 zł"}},null,"Rzeczywiste przychody miesięczne"]
["Prąd",{"v":44,"d":"44 zł"},{"v":125,"d":"125 zł"},{"$f":"Housing[Koszt planowany]-Housing[Koszt rzeczywisty]","v":{"v":-81,"d":"-81 zł"}},null,"Przychód 1",{"v":4000,"d":"4,000 zł"}]
["Gaz",{"v":22,"d":"22 zł"},{"v":35,"d":"35 zł"},{"$f":"Housing[Koszt planowany]-Housing[Koszt rzeczywisty]","v":{"v":-13,"d":"-13 zł"}},null,"Przychód 2",{"v":1200,"d":"1,200 zł"}]
["Woda i ścieki",{"v":8,"d":"8 zł"},{"v":8,"d":"8 zł"},{"$f":"Housing[Koszt planowany]-Housing[Koszt rzeczywisty]","v":{"v":0,"d":"0 zł"}},null,"Przychód dodatkowy",{"v":300,"d":"300 zł"}]
["Telewizja kablowa",{"v":34,"d":"34 zł"},{"v":39,"d":"39 zł"},{"$f":"Housing[Koszt planowany]-Housing[Koszt rzeczywisty]","v":{"v":-5,"d":"-5 zł"}},null,"Całkowity przychód miesięczny",{"$f":"SUM(G10:G12)","v":{"v":5500,"d":"5,500 zł"}}]
["Wywóz śmieci",{"v":10,"d":"10 zł"},{"v":10,"d":"10 zł"},{"$f":"Housing[Koszt planowany]-Housing[Koszt rzeczywisty]","v":{"v":0,"d":"0 zł"}}]
["Konserwacja lub naprawy",{"v":23,"d":"23 zł"},{"v":0,"d":"0 zł"},{"$f":"Housing[Koszt planowany]-Housing[Koszt rzeczywisty]","v":{"v":23,"d":"23 zł"}},null,"Planowane saldo\n",{"$f":"SUM(G7-B4)","v":{"v":4297,"d":"4,297 zł"}}]
["Materiały",{"v":0,"d":"0 zł"},{"v":0,"d":"0 zł"},{"$f":"Housing[Koszt planowany]-Housing[Koszt rzeczywisty]","v":{"v":0,"d":"0 zł"}},null,"Rzeczywiste saldo",{"$f":"SUM(G13-C4)","v":{"v":4183,"d":"4,183 zł"}}]
["Inne",{"v":0,"d":"0 zł"},{"v":0,"d":"0 zł"},{"$f":"Housing[Koszt planowany]-Housing[Koszt rzeczywisty]","v":{"v":0,"d":"0 zł"}},null,"Różnica",{"$f":"SUM(G16-G15)","v":{"v":-114,"d":"-114 zł"}}]
["Razem",{"$f":"SUBTOTAL(109,Housing[Koszt planowany])","v":{"v":1203,"d":"1,203 zł"}},{"$f":"SUBTOTAL(109,Housing[Koszt rzeczywisty])","v":{"v":1317,"d":"1,317 zł"}},{"$f":"SUBTOTAL(109,Housing[Różnica])","v":{"v":-114,"d":"-114 zł"}}]
[]
["Transport","Koszt planowany","Koszt rzeczywisty","Różnica",null,"Pożyczki","Koszt planowany","Koszt rzeczywisty","Różnica"]
["Opłaty za samochód 1",null,null,{"$f":"Transportation[Koszt planowany]-Transportation[Koszt rzeczywisty]","v":{"v":0,"d":"0 zł"}},null,"Osobiste",null,null,{"$f":"Loans[Koszt planowany]-Loans[Koszt rzeczywisty]","v":{"v":0,"d":"0 zł"}}]
["Opłaty za samochód 2",null,null,{"$f":"Transportation[Koszt planowany]-Transportation[Koszt rzeczywisty]","v":{"v":0,"d":"0 zł"}},null,"Student",null,null,{"$f":"Loans[Koszt planowany]-Loans[Koszt rzeczywisty]","v":{"v":0,"d":"0 zł"}}]
["Opłaty za taksówkę/autobus",null,null,{"$f":"Transportation[Koszt planowany]-Transportation[Koszt rzeczywisty]","v":{"v":0,"d":"0 zł"}},null,"Karta kredytowa",null,null,{"$f":"Loans[Koszt planowany]-Loans[Koszt rzeczywisty]","v":{"v":0,"d":"0 zł"}}]
["Ubezpieczenie",null,null,{"$f":"Transportation[Koszt planowany]-Transportation[Koszt rzeczywisty]","v":{"v":0,"d":"0 zł"}},null,"Karta kredytowa",null,null,{"$f":"Loans[Koszt planowany]-Loans[Koszt rzeczywisty]","v":{"v":0,"d":"0 zł"}}]
["Licencje",null,null,{"$f":"Transportation[Koszt planowany]-Transportation[Koszt rzeczywisty]","v":{"v":0,"d":"0 zł"}},null,"Karta kredytowa",null,null,{"$f":"Loans[Koszt planowany]-Loans[Koszt rzeczywisty]","v":{"v":0,"d":"0 zł"}}]
["Paliwo",null,null,{"$f":"Transportation[Koszt planowany]-Transportation[Koszt rzeczywisty]","v":{"v":0,"d":"0 zł"}},null,"Inne",null,null,{"$f":"Loans[Koszt planowany]-Loans[Koszt rzeczywisty]","v":{"v":0,"d":"0 zł"}}]
["Konserwacja",null,null,{"$f":"Transportation[Koszt planowany]-Transportation[Koszt rzeczywisty]","v":{"v":0,"d":"0 zł"}},null,"Total",{"$f":"SUBTOTAL(109,Loans[Koszt planowany])","v":{"v":0,"d":"0 zł"}},{"$f":"SUBTOTAL(109,Loans[Koszt rzeczywisty])","v":{"v":0,"d":"0 zł"}},{"$f":"SUBTOTAL(109,Loans[Różnica])","v":{"v":0,"d":"0 zł"}}]
["Inne",null,null,{"$f":"Transportation[Koszt planowany]-Transportation[Koszt rzeczywisty]","v":{"v":0,"d":"0 zł"}}]
["Razem",{"$f":"SUBTOTAL(109,Transportation[Koszt planowany])","v":{"v":0,"d":"0 zł"}},{"$f":"SUBTOTAL(109,Transportation[Koszt rzeczywisty])","v":{"v":0,"d":"0 zł"}},{"$f":"SUBTOTAL(109,Transportation[Różnica])","v":{"v":0,"d":"0 zł"}},null,"Rozrywka","Koszt planowany","Koszt rzeczywisty","Różnica"]
[{"$nulls":5},"Filmy wideo/DVD",null,null,{"$f":"Entertainment[Koszt planowany]-Entertainment[Koszt rzeczywisty]","v":{"v":0,"d":"0 zł"}}]
["Ubezpieczenie","Koszt planowany","Koszt rzeczywisty","Różnica",null,"Płyty CD",null,null,{"$f":"Entertainment[Koszt planowany]-Entertainment[Koszt rzeczywisty]","v":{"v":0,"d":"0 zł"}}]
["Dom",null,null,{"$f":"Insurance[Koszt planowany]-Insurance[Koszt rzeczywisty]","v":{"v":0,"d":"0 zł"}},null,"Kino",null,null,{"$f":"Entertainment[Koszt planowany]-Entertainment[Koszt rzeczywisty]","v":{"v":0,"d":"0 zł"}}]
["Zdrowie",null,null,{"$f":"Insurance[Koszt planowany]-Insurance[Koszt rzeczywisty]","v":{"v":0,"d":"0 zł"}},null,"Koncerty",null,null,{"$f":"Entertainment[Koszt planowany]-Entertainment[Koszt rzeczywisty]","v":{"v":0,"d":"0 zł"}}]
["Życie",null,null,{"$f":"Insurance[Koszt planowany]-Insurance[Koszt rzeczywisty]","v":{"v":0,"d":"0 zł"}},null,"Imprezy sportowe",null,null,{"$f":"Entertainment[Koszt planowany]-Entertainment[Koszt rzeczywisty]","v":{"v":0,"d":"0 zł"}}]
["Inne",null,null,{"$f":"Insurance[Koszt planowany]-Insurance[Koszt rzeczywisty]","v":{"v":0,"d":"0 zł"}},null,"Teatr",null,null,{"$f":"Entertainment[Koszt planowany]-Entertainment[Koszt rzeczywisty]","v":{"v":0,"d":"0 zł"}}]
["Razem",{"$f":"SUBTOTAL(109,Insurance[Koszt planowany])","v":{"v":0,"d":"0 zł"}},{"$f":"SUBTOTAL(109,Insurance[Koszt rzeczywisty])","v":{"v":0,"d":"0 zł"}},{"$f":"SUBTOTAL(109,Insurance[Różnica])","v":{"v":0,"d":"0 zł"}},null,"Inne",null,null,{"$f":"Entertainment[Koszt planowany]-Entertainment[Koszt rzeczywisty]","v":{"v":0,"d":"0 zł"}}]
[{"$nulls":5},"Razem",{"$f":"SUBTOTAL(109,Entertainment[Koszt planowany])","v":{"v":0,"d":"0 zł"}},{"$f":"SUBTOTAL(109,Entertainment[Koszt rzeczywisty])","v":{"v":0,"d":"0 zł"}},{"$f":"SUBTOTAL(109,Entertainment[Różnica])","v":{"v":0,"d":"0 zł"}}]
["Jedzenie","Koszt planowany","Koszt rzeczywisty","Różnica"]
["Artykuły spożywcze",null,null,{"$f":"Food[Koszt planowany]-Food[Koszt rzeczywisty]","v":{"v":0,"d":"0 zł"}},null,"Podatki","Koszt planowany","Koszt rzeczywisty","Różnica"]
["Restauracje",null,null,{"$f":"Food[Koszt planowany]-Food[Koszt rzeczywisty]","v":{"v":0,"d":"0 zł"}},null,"Wojewódzkie",null,null,{"$f":"Taxes[Koszt planowany]-Taxes[Koszt rzeczywisty]","v":{"v":0,"d":"0 zł"}}]
["Inne",null,null,{"$f":"Food[Koszt planowany]-Food[Koszt rzeczywisty]","v":{"v":0,"d":"0 zł"}},null,"Województwo",null,null,{"$f":"Taxes[Koszt planowany]-Taxes[Koszt rzeczywisty]","v":{"v":0,"d":"0 zł"}}]
["Razem",{"$f":"SUBTOTAL(109,Food[Koszt planowany])","v":{"v":0,"d":"0 zł"}},{"$f":"SUBTOTAL(109,Food[Koszt rzeczywisty])","v":{"v":0,"d":"0 zł"}},{"$f":"SUBTOTAL(109,Food[Różnica])","v":{"v":0,"d":"0 zł"}},null,"Podatek 3",null,null,{"$f":"Taxes[Koszt planowany]-Taxes[Koszt rzeczywisty]","v":{"v":0,"d":"0 zł"}}]
[{"$nulls":5},"Inne",null,null,{"$f":"Taxes[Koszt planowany]-Taxes[Koszt rzeczywisty]","v":{"v":0,"d":"0 zł"}}]
["Dzieci","Koszt planowany","Koszt rzeczywisty","Różnica",null,"Razem",{"$f":"SUBTOTAL(109,Taxes[Koszt planowany])","v":{"v":0,"d":"0 zł"}},{"$f":"SUBTOTAL(109,Taxes[Koszt rzeczywisty])","v":{"v":0,"d":"0 zł"}},{"$f":"SUBTOTAL(109,Taxes[Różnica])","v":{"v":0,"d":"0 zł"}}]
["Opieka medyczna",null,null,{"$f":"Children[Koszt planowany]-Children[Koszt rzeczywisty]","v":{"v":0,"d":"0 zł"}}]
["Ubrania",null,null,{"$f":"Children[Koszt planowany]-Children[Koszt rzeczywisty]","v":{"v":0,"d":"0 zł"}},null,"Wydatki osobiste","Koszt planowany","Koszt rzeczywisty","Różnica"]
["Czesne",null,null,{"$f":"Children[Koszt planowany]-Children[Koszt rzeczywisty]","v":{"v":0,"d":"0 zł"}},null,"Opieka medyczna",null,null,{"$f":"PersonalCare[Koszt planowany]-PersonalCare[Koszt rzeczywisty]","v":{"v":0,"d":"0 zł"}}]
["Artykuły szkolne",null,null,{"$f":"Children[Koszt planowany]-Children[Koszt rzeczywisty]","v":{"v":0,"d":"0 zł"}},null,"Włosy/paznokcie",null,null,{"$f":"PersonalCare[Koszt planowany]-PersonalCare[Koszt rzeczywisty]","v":{"v":0,"d":"0 zł"}}]
["Opłaty na cele organizacji",null,null,{"$f":"Children[Koszt planowany]-Children[Koszt rzeczywisty]","v":{"v":0,"d":"0 zł"}},null,"Ubrania",null,null,{"$f":"PersonalCare[Koszt planowany]-PersonalCare[Koszt rzeczywisty]","v":{"v":0,"d":"0 zł"}}]
["Pieniądze na obiad",null,null,{"$f":"Children[Koszt planowany]-Children[Koszt rzeczywisty]","v":{"v":0,"d":"0 zł"}},null,"Pralnia chemiczna",null,null,{"$f":"PersonalCare[Koszt planowany]-PersonalCare[Koszt rzeczywisty]","v":{"v":0,"d":"0 zł"}}]
["Opieka nad dziećmi",null,null,{"$f":"Children[Koszt planowany]-Children[Koszt rzeczywisty]","v":{"v":0,"d":"0 zł"}},null,"Klub sportowy",null,null,{"$f":"PersonalCare[Koszt planowany]-PersonalCare[Koszt rzeczywisty]","v":{"v":0,"d":"0 zł"}}]
["Zabawki/gry",null,null,{"$f":"Children[Koszt planowany]-Children[Koszt rzeczywisty]","v":{"v":0,"d":"0 zł"}},null,"Opłaty na cele organizacji",null,null,{"$f":"PersonalCare[Koszt planowany]-PersonalCare[Koszt rzeczywisty]","v":{"v":0,"d":"0 zł"}}]
["Inne",null,null,{"$f":"Children[Koszt planowany]-Children[Koszt rzeczywisty]","v":{"v":0,"d":"0 zł"}},null,"Inne",null,null,{"$f":"PersonalCare[Koszt planowany]-PersonalCare[Koszt rzeczywisty]","v":{"v":0,"d":"0 zł"}}]
["Razem",{"$f":"SUBTOTAL(109,Children[Koszt planowany])","v":{"v":0,"d":"0 zł"}},{"$f":"SUBTOTAL(109,Children[Koszt rzeczywisty])","v":{"v":0,"d":"0 zł"}},{"$f":"SUBTOTAL(109,Children[Różnica])","v":{"v":0,"d":"0 zł"}},null,"Razem",{"$f":"SUBTOTAL(109,PersonalCare[Koszt planowany])","v":{"v":0,"d":"0 zł"}},{"$f":"SUBTOTAL(109,PersonalCare[Koszt rzeczywisty])","v":{"v":0,"d":"0 zł"}},{"$f":"SUBTOTAL(109,PersonalCare[Różnica])","v":{"v":0,"d":"0 zł"}}]
[]
["Prawne","Koszt planowany","Koszt rzeczywisty","Różnica",null,"Zwierzęta","Koszt planowany","Koszt rzeczywisty","Różnica"]
["Prawnik",null,null,{"$f":"Legal[Koszt planowany]-Legal[Koszt rzeczywisty]","v":{"v":0,"d":"0 zł"}},null,"Jedzenie",null,null,{"$f":"Pets[Koszt planowany]-Pets[Koszt rzeczywisty]","v":{"v":0,"d":"0 zł"}}]
["Alimenty",null,null,{"$f":"Legal[Koszt planowany]-Legal[Koszt rzeczywisty]","v":{"v":0,"d":"0 zł"}},null,"Opieka medyczna",null,null,{"$f":"Pets[Koszt planowany]-Pets[Koszt rzeczywisty]","v":{"v":0,"d":"0 zł"}}]
["Płatności",null,null,{"$f":"Legal[Koszt planowany]-Legal[Koszt rzeczywisty]","v":{"v":0,"d":"0 zł"}},null,"Pielęgnacja",null,null,{"$f":"Pets[Koszt planowany]-Pets[Koszt rzeczywisty]","v":{"v":0,"d":"0 zł"}}]
["Inne",null,null,{"$f":"Legal[Koszt planowany]-Legal[Koszt rzeczywisty]","v":{"v":0,"d":"0 zł"}},null,"Zabawki",null,null,{"$f":"Pets[Koszt planowany]-Pets[Koszt rzeczywisty]","v":{"v":0,"d":"0 zł"}}]
["Razem",{"$f":"SUBTOTAL(109,Legal[Koszt planowany])","v":{"v":0,"d":"0 zł"}},{"$f":"SUBTOTAL(109,Legal[Koszt rzeczywisty])","v":{"v":0,"d":"0 zł"}},{"$f":"SUBTOTAL(109,Legal[Różnica])","v":{"v":0,"d":"0 zł"}},null,"Inne",null,null,{"$f":"Pets[Koszt planowany]-Pets[Koszt rzeczywisty]","v":{"v":0,"d":"0 zł"}}]
[{"$nulls":5},"Razem",{"$f":"SUBTOTAL(109,Pets[Koszt planowany])","v":{"v":0,"d":"0 zł"}},{"$f":"SUBTOTAL(109,Pets[Koszt rzeczywisty])","v":{"v":0,"d":"0 zł"}},{"$f":"SUBTOTAL(109,Pets[Różnica])","v":{"v":0,"d":"0 zł"}}]
["Oszczędności/inwestycje","Koszt planowany","Koszt rzeczywisty","Różnica"]
["Fundusz emerytalny",null,null,{"$f":"Savings[Koszt planowany]-Savings[Koszt rzeczywisty]","v":{"v":0,"d":"0 zł"}},null,"Prezenty i dotacje","Koszt planowany","Koszt rzeczywisty","Różnica"]
["Fundusz inwestycyjny",null,null,{"$f":"Savings[Koszt planowany]-Savings[Koszt rzeczywisty]","v":{"v":0,"d":"0 zł"}},null,"Cele charytatywne 1",null,null,{"$f":"Gifts[Koszt planowany]-Gifts[Koszt rzeczywisty]","v":{"v":0,"d":"0.00 zł"}}]
["Szkoła średnia",null,null,{"$f":"Savings[Koszt planowany]-Savings[Koszt rzeczywisty]","v":{"v":0,"d":"0 zł"}},null,"Cele charytatywne 2",null,null,{"$f":"Gifts[Koszt planowany]-Gifts[Koszt rzeczywisty]","v":{"v":0,"d":"0.00 zł"}}]
["Inne",null,null,{"$f":"Savings[Koszt planowany]-Savings[Koszt rzeczywisty]","v":{"v":0,"d":"0 zł"}},null,"Cele charytatywne 3",null,null,{"$f":"Gifts[Koszt planowany]-Gifts[Koszt rzeczywisty]","v":{"v":0,"d":"0.00 zł"}}]
["Razem",{"$f":"SUBTOTAL(109,Savings[Koszt planowany])","v":{"v":0,"d":"0 zł"}},{"$f":"SUBTOTAL(109,Savings[Koszt rzeczywisty])","v":{"v":0,"d":"0 zł"}},{"$f":"SUBTOTAL(109,Savings[Różnica])","v":{"v":0,"d":"0 zł"}},null,"Razem",{"$f":"SUBTOTAL(109,Gifts[Koszt rzeczywisty])","v":{"v":0,"d":"0.00 zł"}},{"$f":"SUBTOTAL(109,Gifts[Koszt rzeczywisty])","v":{"v":0,"d":"0.00 zł"}},{"$f":"SUBTOTAL(109,Gifts[Różnica])","v":{"v":0,"d":"0.00 zł"}}]